bitfinex-derivatives/quotes_BTCF0:USTF0_20251210
["timestamp","ask_amount","ask_price","bid_price","bid_amount"]
[1765326813580,0.0700601,92587.0,92586.0,0.05717]
[1765326813888,0.0700601,92587.0,92586.0,0.05817]
[1765326814085,0.0108001,92587.0,92586.0,0.55250054]
[1765326814480,0.0108001,92587.0,92586.0,0.49423]
[1765326814681,0.0118001,92587.0,92586.0,0.49423]
[1765326814991,0.0128001,92587.0,92586.0,0.49323]
[1765326815187,0.0118001,92587.0,92586.0,0.49323]
[1765326815991,0.0118001,92587.0,92586.0,0.49423]
[1765326816288,0.04160954,92590.0,92589.0,0.05617]
[1765326816683,0.07113954,92590.0,92589.0,0.05617]
[1765326817492,0.07113954,92590.0,92589.0,0.05717]
[1765326817794,0.07113954,92590.0,92589.0,0.0679695]
[1765326818896,0.07213954,92590.0,92589.0,0.0679695]
[1765326819393,0.07213954,92590.0,92589.0,0.0669695]
[1765326819593,0.07113954,92590.0,92589.0,0.0669695]
[1765326819785,0.07213954,92590.0,92589.0,0.0669695]
[1765326820197,0.07213954,92590.0,92589.0,0.08041641]
[1765326821197,0.07113954,92590.0,92589.0,0.08041641]
[1765326821385,0.03081004,92590.0,92589.0,0.08041641]
[1765326821895,0.00108004,92590.0,92589.0,0.58041641]
[1765326822285,0.00016199,92596.0,92595.0,0.0669688]
[1765326823593,0.00016199,92596.0,92595.0,0.0679688]
[1765326823800,0.02989199,92596.0,92595.0,0.0679688]
[1765326824286,0.02989199,92596.0,92595.0,0.0689688]
[1765326824487,0.00016199,92596.0,92595.0,0.0689688]
[1765326824689,0.00016199,92596.0,92595.0,0.0679688]
[1765326824900,0.05942199,92596.0,92595.0,0.0679688]
[1765326825400,0.05942199,92596.0,92595.0,0.05717]
[1765326825601,0.05942199,92596.0,92595.0,0.05817]
[1765326827092,0.05942199,92596.0,92595.0,0.05717]
[1765326827597,0.05942199,92596.0,92595.0,0.05617]
[1765326828603,0.05942199,92596.0,92595.0,0.0276]
[1765326828800,0.05942199,92596.0,92589.0,0.05617]
[1765326828801,0.0700594,92590.0,92589.0,0.05617]
[1765326830400,0.0710594,92590.0,92589.0,0.05617]
[1765326831193,0.0710594,92590.0,92581.0,0.11443214]
[1765326831194,0.0700603,92582.0,92581.0,0.11443214]
[1765326831502,0.05926,92578.0,92577.0,0.05633199]
[1765326831698,0.05926,92578.0,92577.0,0.09874818]
[1765326832206,0.05926,92578.0,92577.0,0.08633199]
[1765326832394,0.0710594,92590.0,92589.0,0.05617]
[1765326832595,0.09380877,92590.0,92589.0,0.05617]
[1765326833291,0.09280877,92590.0,92589.0,0.05617]
[1765326834105,0.09380877,92590.0,92589.0,0.05617]
[1765326835009,0.0682504,92581.0,92580.0,0.15903274]
[1765326835207,0.0682504,92581.0,92580.0,0.06634]
[1765326836208,0.0682504,92581.0,92580.0,0.06734]
[1765326836605,0.0682504,92581.0,92580.0,0.06834]
[1765326837504,0.0692504,92581.0,92580.0,0.46734]
[1765326837811,0.0692504,92581.0,92580.0,0.48342]
[1765326838008,0.0682504,92581.0,92580.0,0.48342]
[1765326838209,0.0692504,92581.0,92580.0,0.48342]
[1765326838607,0.0692504,92581.0,92580.0,0.48442]
[1765326839304,0.0692504,92581.0,92580.0,0.48342]
[1765326839494,0.0692504,92581.0,92580.0,0.48442]
[1765326840099,0.0682504,92581.0,92580.0,0.48442]
[1765326840912,0.0682504,92581.0,92580.0,0.34442]
[1765326841102,0.0682504,92581.0,92580.0,0.18734]
[1765326841504,0.0682504,92581.0,92580.0,0.06634]
[1765326841505,0.09101267,92581.0,92580.0,0.06634]
[1765326841714,0.09101267,92581.0,92580.0,0.06734]
[1765326842411,0.09101267,92581.0,92580.0,0.01]
[1765326842611,0.09101267,92581.0,92580.0,0.03773]
[1765326843922,0.09301267,92581.0,92580.0,0.03773]
[1765326845214,0.09301267,92581.0,92580.0,0.06634]
[1765326846428,0.09201267,92581.0,92580.0,0.06634]
[1765326846629,0.09301267,92581.0,92580.0,0.06634]
[1765326847619,0.09201267,92581.0,92580.0,0.06634]
[1765326847929,0.09301267,92581.0,92580.0,0.06634]
[1765326848325,0.09201267,92581.0,92580.0,0.06634]
[1765326848531,0.09301267,92581.0,92580.0,0.06634]
[1765326850324,0.09301267,92581.0,92580.0,0.01]
[1765326850525,0.0668908,92578.0,92577.0,0.00016199]
[1765326850732,0.0668922,92566.0,92565.0,0.00108033]
[1765326850921,0.08965447,92566.0,92565.0,0.00108033]
[1765326851122,0.0668934,92556.0,92555.0,0.01251228]
[1765326851317,0.0668934,92556.0,92555.0,0.14178228]
[1765326851318,0.0844634,92556.0,92555.0,0.14178228]
[1765326851622,0.0388434,92556.0,92555.0,0.27880228]
[1765326851827,0.0668934,92556.0,92555.0,0.26629]
[1765326852521,0.0108033,92557.0,92556.0,0.0849934]
[1765326852720,0.0108033,92557.0,92556.0,0.1549934]
[1765326852921,0.0388433,92557.0,92556.0,0.14419]
[1765326853123,0.0668933,92557.0,92556.0,0.14419]
[1765326853729,0.0678933,92557.0,92556.0,0.14919]
[1765326853931,0.0688933,92557.0,92556.0,0.15619]
[1765326858533,0.0688933,92557.0,92556.0,0.15539]
[1765326859227,0.0408433,92557.0,92556.0,0.15539]
[1765326859429,0.0688933,92557.0,92556.0,0.13749]
[1765326859829,0.0688933,92557.0,92556.0,0.06749]
[1765326860926,0.06867651,92557.0,92556.0,0.06749]
[1765326861935,0.06867651,92557.0,92556.0,0.012]
[1765326862232,0.06867651,92557.0,92547.0,0.00011816]
[1765326862233,0.0668943,92548.0,92547.0,0.05640816]
[1765326862434,0.0668943,92548.0,92547.0,0.14640816]
[1765326862641,0.0668943,92548.0,92547.0,0.09011816]
[1765326862828,0.0668943,92548.0,92546.0,9e-08]
[1765326862829,0.05609,92547.0,92546.0,9e-08]
[1765326863138,0.0135,92550.0,92524.0,0.05826214]
[1765326863139,0.05712,92525.0,92524.0,0.05826214]
[1765326863329,0.067927,92525.0,92524.0,0.08]
[1765326863835,0.067928,92516.0,92515.0,0.05875091]
[1765326864031,0.067928,92516.0,92515.0,0.13891299]
[1765326864233,0.067928,92516.0,92515.0,0.15134535]
[1765326864430,0.067928,92516.0,92515.0,0.13891299]
[1765326865743,0.069928,92516.0,92515.0,0.13891299]
[1765326866037,0.004,92516.0,92515.0,0.13891299]
[1765326866235,0.06312,92516.0,92515.0,0.13991299]
[1765326868042,0.06112,92516.0,92515.0,0.13991299]
[1765326868741,0.004,92516.0,92515.0,0.13991299]
[1765326869046,0.0108071,92524.0,92523.0,0.0108071]
[1765326869236,0.02962,92524.0,92523.0,0.1084771]
[1765326869427,0.05712,92524.0,92523.0,0.1084771]
[1765326869734,0.01092526,92525.0,92523.0,0.1084771]
[1765326869936,0.00011816,92525.0,92524.0,0.05767]
[1765326870142,0.00011816,92525.0,92524.0,0.44767]
[1765326871037,0.05408,92543.0,92530.0,0.05767]
[1765326871038,0.01012456,92531.0,92530.0,0.05767]
[1765326871238,0.01012456,92531.0,92530.0,0.0684764]
[1765326871537,0.0679271,92524.0,92523.0,0.02995]
[1765326871736,0.0679271,92524.0,92523.0,0.04]
[1765326872140,0.0679271,92524.0,92523.0,0.06995]
[1765326872330,0.0679271,92524.0,92523.0,0.09767]
[1765326873138,0.0404271,92524.0,92523.0,0.09767]
[1765326873339,0.002,92524.0,92523.0,0.51767]
[1765326873733,0.05912,92524.0,92523.0,0.09767]
[1765326874236,0.05912,92524.0,92523.0,0.38767]
[1765326874433,0.06412,92524.0,92523.0,0.38867]
[1765326874839,0.06012,92524.0,92523.0,0.38767]
[1765326875445,0.06112,92524.0,92523.0,0.38867]
[1765326875636,0.06012,92524.0,92523.0,0.38867]
[1765326876947,0.05712,92524.0,92523.0,0.38767]
[1765326877258,0.06012,92524.0,92523.0,0.38767]
[1765326878444,0.003,92524.0,92523.0,0.38767]
[1765326879043,0.06012,92524.0,92523.0,0.38767]
[1765326880139,0.06012,92524.0,92523.0,0.3984772]
[1765326880334,0.06012,92524.0,92523.0,0.38767]
[1765326881446,0.06012,92524.0,92523.0,0.09767]
[1765326881642,0.06012,92524.0,92523.0,0.04]
[1765326881844,0.05812,92524.0,92523.0,0.04]
[1765326882044,0.06312,92524.0,92523.0,0.041]
[1765326882453,0.06312,92524.0,92523.0,0.07095]
[1765326882653,0.06312,92524.0,92523.0,0.09867]
[1765326882957,0.06312,92524.0,92523.0,0.041]
[1765326883555,0.05712,92516.0,92515.0,0.05891299]
[1765326883756,0.05712,92516.0,92515.0,0.13891299]
[1765326884649,0.06012,92516.0,92515.0,0.13991299]
[1765326884956,0.070928,92516.0,92515.0,0.13991299]
[1765326885646,0.003,92516.0,92515.0,0.13991299]
[1765326886041,0.06012,92516.0,92515.0,0.13991299]
[1765326886956,0.003,92516.0,92515.0,0.56991299]
[1765326887654,0.06012,92516.0,92515.0,0.13991299]
[1765326888458,0.06012,92516.0,92515.0,0.11219299]
[1765326888646,0.06012,92516.0,92515.0,0.01224299]
[1765326889451,0.06012,92516.0,92515.0,0.04219299]
[1765326890161,0.06012,92516.0,92515.0,0.06991299]
[1765326890463,0.003,92516.0,92515.0,0.06991299]
[1765326890850,0.03262,92516.0,92515.0,0.06991299]
[1765326892272,0.08299042,92516.0,92515.0,0.06991299]
[1765326892558,0.02587042,92516.0,92515.0,0.06991299]
[1765326892857,0.003,92516.0,92515.0,0.43991299]
[1765326894650,0.05949,92516.0,92515.0,0.18991299]
[1765326894845,0.05949,92516.0,92515.0,0.20072109]
[1765326895262,0.03158,92516.0,92515.0,0.20072109]
[1765326895866,0.003,92516.0,92515.0,0.43072109]
[1765326897165,0.0108077,92519.0,92518.0,0.0653378]
[1765326897350,0.0108077,92519.0,92518.0,0.4853378]
[1765326897755,0.0108073,92522.0,92521.0,0.0382069]
[1765326897954,0.0108073,92522.0,92521.0,0.4653369]
[1765326899259,0.0108073,92522.0,92521.0,0.1753369]
[1765326899852,0.0108073,92522.0,92521.0,0.1763369]
[1765326900063,0.0148073,92522.0,92521.0,0.4563369]
[1765326900452,0.0128073,92522.0,92521.0,0.4553369]
[1765326901272,0.002,92522.0,92521.0,0.4553369]
[1765326901567,0.0108042,92549.0,92548.0,0.05453]
[1765326901768,0.0672942,92549.0,92548.0,0.05453]
[1765326902865,0.0712942,92549.0,92548.0,0.05453]
[1765326903061,0.0158042,92549.0,92548.0,0.05453]
[1765326903271,0.0118042,92549.0,92548.0,0.05453]
[1765326903469,0.0138042,92549.0,92548.0,0.05453]
[1765326904165,0.0702942,92549.0,92548.0,0.05453]
[1765326904753,0.0138042,92549.0,92548.0,0.05453]
[1765326905366,0.0692942,92549.0,92548.0,0.05453]
[1765326905671,0.0682942,92549.0,92548.0,0.05453]
[1765326905970,0.0672942,92549.0,92548.0,0.05453]
[1765326906169,0.0682942,92549.0,92548.0,0.05453]
[1765326908257,0.0118042,92549.0,92548.0,0.05453]
[1765326908466,0.0404642,92549.0,92548.0,0.05453]
[1765326908672,0.0685142,92549.0,92548.0,0.05453]
[1765326908969,0.0685142,92549.0,92548.0,0.0653343]
[1765326909370,0.0685142,92549.0,92548.0,0.05453]
[1765326913674,0.0108051,92541.0,92540.0,0.05617]
[1765326913872,0.07412,92540.0,92539.0,0.00016208]
[1765326915273,0.07412,92540.0,92539.0,0.02804208]
[1765326915661,0.07412,92540.0,92539.0,0.02904208]
[1765326915876,0.07412,92540.0,92539.0,0.03004208]
[1765326916373,0.07412,92540.0,92539.0,0.05833208]
[1765326916761,0.07412,92540.0,92539.0,0.00216208]
[1765326917462,0.07412,92540.0,92522.0,0.05831903]
[1765326917463,0.0675172,92523.0,92522.0,0.05617]
[1765326917776,0.0675172,92523.0,92522.0,0.07617]
[1765326918577,0.0685172,92523.0,92522.0,0.08217]
[1765326918976,0.0695172,92523.0,92522.0,0.09117]
[1765326923565,0.0695172,92523.0,92522.0,0.015]
[1765326924676,0.068388,92516.0,92515.0,0.00108091]
[1765326924976,0.068388,92516.0,92515.0,0.05880091]
[1765326925777,0.072388,92516.0,92515.0,0.05880091]
[1765326926976,0.074388,92516.0,92515.0,0.05880091]
[1765326927170,0.070388,92516.0,92515.0,0.05880091]
[1765326927371,0.073388,92516.0,92515.0,0.05880091]
[1765326927678,0.072388,92516.0,92515.0,0.05880091]
[1765326927878,0.043378,92516.0,92515.0,0.05880091]
[1765326928069,0.072388,92516.0,92515.0,0.05880091]
[1765326928582,0.072388,92516.0,92515.0,0.00108091]
[1765326929184,0.072388,92516.0,92515.0,0.02950091]
[1765326929479,0.072388,92516.0,92515.0,0.05880091]
[1765326929871,0.071388,92516.0,92515.0,0.05880091]
[1765326930073,0.073388,92516.0,92515.0,0.05880091]
[1765326930273,0.073388,92516.0,92515.0,0.00108091]
[1765326930477,0.070388,92516.0,92515.0,0.00108091]
[1765326930785,0.072388,92516.0,92515.0,0.00108091]
[1765326931077,0.070388,92516.0,92515.0,0.00108091]
[1765326931268,0.073388,92516.0,92515.0,0.00108091]
[1765326933976,0.073388,92516.0,92515.0,0.05880091]
[1765326934285,0.073388,92516.0,92515.0,0.02950091]
[1765326935286,0.073388,92516.0,92515.0,0.00108091]
[1765326935774,0.073388,92516.0,92515.0,0.05880091]
[1765326936088,0.073388,92516.0,92515.0,0.02950091]
[1765326936484,0.073388,92516.0,92515.0,0.00108091]
[1765326936876,0.073388,92516.0,92515.0,0.02950091]
[1765326937079,0.073388,92516.0,92498.0,0.05831903]
[1765326937080,0.0683899,92500.0,92498.0,0.05831903]
[1765326937277,0.0683909,92491.0,92490.0,0.05772]
[1765326937580,0.0683909,92491.0,92490.0,0.49772]
[1765326938583,0.0693909,92491.0,92490.0,0.50472]
[1765326940379,0.0703909,92491.0,92490.0,0.50872]
[1765326940578,0.0703909,92491.0,92490.0,0.101]
[1765326940791,0.0703909,92491.0,92490.0,0.011]
[1765326941087,0.0694909,92491.0,92490.0,0.011]
[1765326942296,0.0694909,92491.0,92490.0,0.06872]
[1765326948384,0.002,92491.0,92490.0,0.08554]
[1765326949795,0.05958,92491.0,92490.0,0.08554]
[1765326950187,0.03057,92491.0,92490.0,0.08554]
[1765326950588,0.002,92491.0,92490.0,0.08554]
[1765326951200,0.002,92491.0,92490.0,0.44554]
[1765326954595,0.002,92491.0,92490.0,0.08554]
[1765326955190,0.002,92491.0,92490.0,0.36554]
[1765326955596,0.00016217,92500.0,92499.0,0.05586]
[1765326955784,0.01737,92520.0,92519.0,0.05586]
[1765326955785,0.02762,92520.0,92519.0,0.05586]
[1765326955986,0.05602,92520.0,92519.0,0.05586]
[1765326957088,0.05602,92511.0,92510.0,0.05602217]
[1765326957490,0.0668286,92511.0,92510.0,0.05602217]
[1765326958703,0.0678286,92511.0,92510.0,0.05602217]
[1765326959198,0.0668286,92511.0,92510.0,0.05602217]
[1765326959396,0.06698867,92529.0,92528.0,0.05586]
[1765326959996,0.06698867,92529.0,92528.0,0.0666666]
[1765326960199,0.06698867,92529.0,92528.0,0.07848495]
[1765326960200,0.00016217,92529.0,92528.0,0.07848495]
[1765326960389,0.01096867,92529.0,92528.0,0.05586]
[1765326960592,0.06898867,92529.0,92528.0,0.05586]
[1765326961292,0.06898867,92529.0,92515.0,0.06897689]
[1765326961293,0.05602,92516.0,92515.0,0.06897689]
[1765326961502,0.05602,92516.0,92515.0,0.05586]
[1765326961796,0.0284,92516.0,92515.0,0.05586]
[1765326961996,0.0108079,92518.0,92517.0,0.05586]
[1765326962393,0.0108075,92521.0,92519.0,0.01775]
[1765326962589,0.05718217,92529.0,92528.0,0.05686]
[1765326962798,0.06798867,92529.0,92528.0,0.05686]
[1765326963005,0.01096867,92529.0,92528.0,0.05686]
[1765326963306,0.01096867,92529.0,92528.0,0.05586]
[1765326963507,0.06698867,92529.0,92528.0,0.05586]
[1765326963898,0.06798867,92529.0,92528.0,0.05586]
[1765326964208,0.04036867,92529.0,92528.0,0.05586]
[1765326964502,0.06798867,92529.0,92528.0,0.05586]
[1765326964704,0.01296867,92529.0,92528.0,0.05586]
[1765326965004,0.01296867,92529.0,92528.0,0.06586]
[1765326965204,0.04036867,92529.0,92528.0,0.06586]
[1765326965609,0.06798867,92529.0,92528.0,0.05586]
[1765326965799,0.04036867,92529.0,92528.0,0.05586]
[1765326965996,0.00016217,92529.0,92528.0,0.41586]
[1765326966312,0.00116217,92529.0,92528.0,0.41586]
[1765326966497,0.00108062,92540.0,92539.0,0.05901]
[1765326966702,0.05734,92564.0,92563.0,0.05901]
[1765326966903,0.02778,92564.0,92563.0,0.05901]
[1765326967104,0.00108033,92565.0,92564.0,0.05901]
[1765326967317,0.02886033,92565.0,92564.0,0.05901]
[1765326967611,0.00108033,92565.0,92564.0,0.05901]
[1765326968908,0.01688263,92565.0,92564.0,0.06001]
[1765326969107,0.01988263,92565.0,92564.0,0.06101]
[1765326969496,0.00016208,92574.0,92573.0,0.0108014]
[1765326969701,0.00016208,92574.0,92573.0,0.0698114]
[1765326970903,0.05750208,92574.0,92573.0,0.05901]
[1765326971307,0.06150208,92574.0,92573.0,0.06001]
[1765326971609,0.06150208,92574.0,92573.0,0.06201]
[1765326972110,0.05750208,92574.0,92573.0,0.05901]
[1765326972617,0.00016208,92574.0,92573.0,0.05901]
[1765326974606,0.05750208,92574.0,92573.0,0.06001]
[1765326974800,0.05750208,92574.0,92573.0,0.001]
[1765326975107,0.05750208,92574.0,92573.0,0.002]
[1765326975705,0.05734,92556.0,92555.0,0.05917208]
[1765326976015,0.0681434,92556.0,92555.0,0.00016208]
[1765326976515,0.0681434,92556.0,92555.0,0.02994208]
[1765326978105,0.0701434,92556.0,92555.0,0.02994208]
[1765326978710,0.06034,92556.0,92555.0,0.05917208]
[1765326979100,0.05834,92556.0,92555.0,0.05917208]
[1765326980517,0.05734,92556.0,92555.0,0.05917208]
[1765326980701,0.05734,92556.0,92555.0,0.06017208]
[1765326981319,0.05734,92556.0,92555.0,0.06117208]
[1765326982304,0.05834,92556.0,92555.0,0.05917208]
[1765326982509,0.05834,92556.0,92555.0,0.06017208]
[1765326983618,0.05734,92556.0,92555.0,0.06017208]
[1765326983822,0.05834,92556.0,92555.0,0.06017208]
[1765326984921,0.05734,92556.0,92555.0,0.05917208]
[1765326985117,0.05734,92556.0,92555.0,0.06017208]
[1765326987110,0.05734,92556.0,92555.0,0.06117208]
[1765326987617,0.05734,92556.0,92555.0,0.06017208]
[1765326987818,0.05734,92556.0,92555.0,0.06217208]
[1765326988322,0.08110554,92556.0,92555.0,0.05917208]
[1765326988526,0.08110554,92556.0,92555.0,0.06017208]
[1765326989836,0.08010554,92556.0,92555.0,0.06117208]
[1765326990022,0.09090894,92556.0,92555.0,0.06117208]
[1765326991823,0.0681434,92556.0,92555.0,0.06117208]
[1765326993520,0.0681434,92556.0,92555.0,0.05917208]
[1765326993729,0.0681434,92556.0,92555.0,0.06117208]
[1765326994429,0.05883,92568.0,92567.0,0.05833]
[1765326994727,0.08171384,92568.0,92567.0,0.05833]
[1765326994916,0.09251584,92568.0,92567.0,0.05833]
[1765326995827,0.09251584,92568.0,92567.0,0.0691321]
[1765326996027,0.09551584,92568.0,92567.0,0.0691321]
[1765326998224,0.09551584,92568.0,92567.0,0.05833]
[1765327003019,0.11237584,92568.0,92567.0,0.05833]
[1765327003420,0.0864934,92556.0,92555.0,0.06929558]
[1765327003715,0.0864934,92556.0,92555.0,0.05849208]
[1765327003914,0.10940685,92556.0,92555.0,0.02914208]
[1765327005215,0.10940685,92556.0,92555.0,0.03114208]
[1765327005527,0.08174345,92556.0,92555.0,0.06049208]
[1765327005925,0.08274345,92556.0,92555.0,0.06049208]
[1765327006126,0.08234345,92556.0,92555.0,0.05849208]
[1765327006425,0.001,92556.0,92555.0,0.40949208]
[1765327006628,0.001,92556.0,92555.0,0.40849208]
[1765327006830,0.001,92556.0,92555.0,0.41049208]
[1765327007732,0.0108023,92565.0,92564.0,0.0691324]
[1765327008030,0.06263778,92565.0,92564.0,0.0691324]
[1765327008232,0.09255778,92565.0,92564.0,0.0691324]
[1765327008732,0.09255778,92565.0,92564.0,0.05833]
[1765327009029,0.09255778,92565.0,92564.0,0.06133]
[1765327009231,0.09255778,92565.0,92564.0,0.06233]
[1765327009531,0.09255778,92565.0,92564.0,0.06033]
[1765327009919,0.09255778,92565.0,92564.0,0.06133]
[1765327011436,0.09255778,92565.0,92564.0,0.06033]
[1765327012627,0.09255778,92565.0,92564.0,0.05933]
[1765327012824,0.09255778,92565.0,92564.0,0.02998]
[1765327013038,0.09355778,92565.0,92564.0,0.02998]
[1765327015640,0.09355778,92565.0,92564.0,0.05933]
[1765327019442,0.09355778,92565.0,92564.0,0.001]
[1765327019642,0.09355778,92565.0,92564.0,0.02925]
[1765327019941,0.09355778,92565.0,92564.0,0.05866]
[1765327020142,0.09355778,92565.0,92564.0,0.02925]
[1765327020346,0.09355778,92565.0,92564.0,0.001]
[1765327025144,0.09355778,92565.0,92564.0,0.05866]
[1765327026043,0.02991,92565.0,92564.0,0.05866]
[1765327026246,0.001,92565.0,92564.0,0.48866]
[1765327026442,0.001,92565.0,92564.0,0.56866]
[1765327026645,0.001,92565.0,92564.0,0.62682879]
[1765327026841,0.00016208,92574.0,92573.0,0.0691114]
[1765327027041,0.00016208,92574.0,92573.0,0.4191114]
[1765327027242,6.208e-05,92574.0,92573.0,0.4191114]
[1765327028039,0.00206208,92574.0,92573.0,0.4968701]
[1765327028239,0.00206208,92574.0,92573.0,0.4191114]
[1765327028544,0.00306208,92574.0,92573.0,0.4191114]
[1765327028744,0.00306208,92574.0,92573.0,0.5091114]
[1765327030043,2.08e-06,92574.0,92573.0,0.5091114]
[1765327030247,0.0107998,92587.0,92586.0,0.0691099]
[1765327031549,0.0167998,92587.0,92586.0,0.0691099]
[1765327031751,0.03973697,92587.0,92586.0,0.0691099]
[1765327032140,0.03673697,92587.0,92586.0,0.0691099]
[1765327032339,0.0428498,92587.0,92586.0,0.0711099]
[1765327033438,0.0107998,92587.0,92586.0,0.0711099]
[1765327033641,0.0107998,92587.0,92586.0,0.0721099]
[1765327034343,0.0107998,92587.0,92586.0,0.0731099]
[1765327034754,0.0686498,92587.0,92586.0,0.06231]
[1765327035046,0.0686498,92587.0,92586.0,0.06331]
[1765327035450,0.0686498,92587.0,92586.0,0.07794]
[1765327035652,0.0686498,92587.0,92586.0,0.08094]
[1765327035852,0.0686498,92587.0,92586.0,0.44094]
[1765327036052,0.0686498,92587.0,92586.0,0.43794]
[1765327036254,0.0686498,92587.0,92586.0,0.44094]
[1765327036549,0.0686498,92587.0,92586.0,0.43994]
[1765327036749,0.0107998,92587.0,92586.0,0.43994]
[1765327036945,0.00016208,92596.0,92588.0,0.05831]
[1765327037145,0.00016208,92596.0,92588.0,0.55831]
[1765327037947,0.00016208,92596.0,92588.0,0.55931]
[1765327038346,0.00016208,92596.0,92588.0,0.56131]
[1765327040851,2.1e-06,92590.0,92589.0,0.0691095]
[1765327041047,2.1e-06,92590.0,92589.0,0.5191095]
[1765327042157,0.00016208,92596.0,92595.0,0.0691088]
[1765327042457,0.00016208,92596.0,92595.0,0.5491088]
[1765327043260,0.00116208,92596.0,92595.0,0.5491088]
[1765327044347,0.00116208,92596.0,92595.0,0.5501088]
[1765327046456,0.05885208,92596.0,92595.0,0.5501088]
[1765327046658,0.05885208,92596.0,92595.0,0.3401088]
[1765327046858,0.05885208,92596.0,92595.0,0.5101088]
[1765327048056,0.00116208,92596.0,92595.0,0.5101088]
[1765327050160,0.01736,92638.0,92614.0,0.0681566]
[1765327050360,0.01736,92638.0,92614.0,0.5081566]
[1765327050557,0.010795,92628.0,92614.0,0.5081566]
[1765327050959,0.00010709,92624.0,92614.0,0.51949377]
[1765327051356,0.00010709,92624.0,92614.0,0.52449377]
[1765327051559,0.00407974,92615.0,92614.0,0.52449377]
[1765327052353,0.00107974,92615.0,92614.0,0.52649377]
[1765327054658,0.05876974,92615.0,92614.0,0.52649377]
[1765327056362,0.05876974,92615.0,92614.0,0.52149377]
[1765327056565,0.00107974,92615.0,92614.0,0.52449377]
[1765327057268,0.00107974,92615.0,92614.0,0.52549377]
[1765327057470,0.00107974,92615.0,92614.0,0.52349377]
[1765327057772,0.00107974,92615.0,92614.0,0.52549377]
[1765327058271,0.05876974,92615.0,92614.0,0.52549377]
[1765327059170,0.05876974,92615.0,92614.0,0.52349377]
[1765327059371,0.05876974,92615.0,92614.0,0.52149377]
[1765327059666,0.05876974,92615.0,92614.0,0.52449377]
[1765327060061,0.05876974,92615.0,92614.0,0.52549377]
[1765327061971,0.05876974,92615.0,92614.0,0.21549377]
[1765327062171,0.05876974,92615.0,92614.0,0.20949377]
[1765327062368,0.05876974,92615.0,92614.0,0.21549377]
[1765327062768,0.05876974,92615.0,92614.0,0.55149377]
[1765327062969,0.05876974,92615.0,92614.0,0.55549377]
[1765327063369,0.05876974,92615.0,92614.0,0.55149377]
[1765327063570,0.05876974,92615.0,92614.0,0.55349377]
[1765327063770,0.05876974,92615.0,92614.0,0.30249377]
[1765327063972,0.05876974,92615.0,92614.0,0.30049377]
[1765327064169,0.05876974,92615.0,92614.0,0.30349377]
[1765327064560,0.05876974,92615.0,92614.0,0.30449377]
[1765327065972,0.05876974,92615.0,92614.0,0.30149377]
[1765327066172,0.05876974,92615.0,92614.0,0.30449377]
[1765327066576,0.05876974,92615.0,92614.0,0.30149377]
[1765327066768,0.05876974,92615.0,92614.0,0.30449377]
[1765327067171,0.05876974,92615.0,92614.0,0.30149377]
[1765327067377,0.05876974,92615.0,92614.0,0.30449377]
[1765327068281,0.05876974,92615.0,92614.0,0.17449377]
[1765327068484,0.05876974,92615.0,92614.0,0.17249377]
[1765327068670,0.05876974,92615.0,92614.0,0.17449377]
[1765327069286,0.05876974,92615.0,92614.0,0.17549377]
[1765327069676,0.05876974,92615.0,92614.0,0.17149377]
[1765327069879,0.05876974,92615.0,92614.0,0.17449377]
[1765327072269,0.05876974,92615.0,92614.0,0.17149377]
[1765327072465,0.05876974,92615.0,92614.0,0.17449377]
[1765327072882,0.05876974,92615.0,92614.0,0.17149377]
[1765327073083,0.05876974,92615.0,92614.0,0.17549377]
[1765327073471,0.05876974,92615.0,92614.0,0.17149377]
[1765327073667,0.05876974,92615.0,92614.0,0.006]
[1765327073983,0.05876974,92615.0,92614.0,0.004]
[1765327074182,0.0555,92606.0,92605.0,0.00016198]
[1765327074682,0.0555,92606.0,92605.0,0.01016198]
[1765327074872,0.0662975,92606.0,92605.0,0.01016198]
[1765327077581,0.0662975,92606.0,92605.0,0.00016198]
[1765327078885,0.0672975,92606.0,92605.0,0.00016198]
[1765327079382,0.0662986,92597.0,92596.0,0.13037572]
[1765327079583,0.0662986,92597.0,92596.0,0.03771]
[1765327080171,0.0662986,92597.0,92596.0,0.01]
[1765327080369,0.0662986,92597.0,92587.0,0.00016198]
[1765327080370,0.0662996,92588.0,92587.0,0.00016198]
[1765327080569,0.0662996,92588.0,92570.0,0.10266572]
[1765327080777,0.0663016,92571.0,92570.0,0.24939915]
[1765327080977,0.0663016,92571.0,92570.0,0.08]
[1765327081773,0.0558313,92574.0,92573.0,0.05531]
[1765327081980,0.04503,92574.0,92573.0,0.05531]
[1765327082181,0.0663009,92577.0,92576.0,0.05531]
[1765327082387,0.0663009,92577.0,92574.0,0.0108013]
[1765327082576,0.0108016,92572.0,92571.0,0.0385115]
[1765327082772,0.0663016,92572.0,92571.0,0.1061115]
[1765327083383,0.0555,92572.0,92571.0,0.1061115]
[1765327083975,0.0555,92572.0,92571.0,0.5261115]
[1765327084290,0.0558311,92575.0,92574.0,0.0661113]
[1765327084590,0.01723,92580.0,92577.0,0.0661109]
[1765327084591,0.0555,92578.0,92577.0,0.0661109]
[1765327085388,0.01723,92580.0,92579.0,0.05531]
[1765327085591,0.04503,92580.0,92579.0,0.05531]
[1765327085884,0.0107976,92606.0,92579.0,0.05531]
[1765327085885,0.07468384,92610.0,92596.0,0.0661087]
[1765327086073,0.05566198,92597.0,92596.0,0.0661087]
[1765327087284,0.05566198,92597.0,92596.0,0.0671087]
[1765327087787,0.00016198,92597.0,92596.0,0.5471087]
[1765327088483,0.0835272,92610.0,92609.0,0.0661072]
[1765327088684,0.0662974,92607.0,92606.0,0.0661075]
[1765327090582,0.0672974,92607.0,92606.0,0.0661075]
[1765327091191,0.0682974,92607.0,92606.0,0.0661075]
[1765327096798,0.0682974,92607.0,92606.0,0.05531]
[1765327097000,0.0683781,92601.0,92600.0,0.05776]
[1765327100800,0.068379,92594.0,92593.0,0.0685586]
[1765327101903,0.068379,92594.0,92593.0,0.0695586]
[1765327103301,0.068379,92594.0,92593.0,0.0715586]
[1765327103707,0.068379,92594.0,92593.0,0.05876]
[1765327104009,0.068379,92594.0,92593.0,0.06076]
[1765327104799,0.068379,92594.0,92593.0,0.05876]
[1765327104996,0.068379,92594.0,92593.0,0.06076]
[1765327105903,0.010799,92594.0,92593.0,0.06076]
[1765327106202,0.0107985,92601.0,92600.0,0.0107982]
[1765327106402,0.0832771,92610.0,92609.0,0.05674]
[1765327106607,0.0107979,92603.0,92602.0,0.0107979]